[Event "elllobregat Open Chess TnmT- 2nd Edition 2021"]
[Site "Castelldefels, Spain"]
[Date "2021.12.06"]
[Round "7.5"]
[White "Sethuraman, S.P."]
[Black "Karthik, Venkataraman"]
[Result "1/2-1/2"]
[TimeControl "90min/40moves + 30min/end + 30sec increment per move starting from move 1"]
[WhiteTitle "GM"]
[BlackTitle "GM"]
[WhiteFideId "5021596"]
[BlackFideId "25006479"]
[WhiteElo "2620"]
[BlackElo "2491"]

1. d4 {[%clk 01:30:44]} {[%emt 00:00:15]} Nf6 {[%clk 01:30:21]} {[%emt
00:00:39]} 2. c4 {[%emt 00:01:38]} c6 {[%clk 01:28:43]} {[%emt 00:00:38]} 3.
Nc3 {[%clk 01:31:12]} d5 {[%clk 01:29:07]} {[%emt 00:00:30]} 4. Nf3 {[%emt
00:00:26]} dxc4 {[%clk 01:29:18]} 5. e4 {[%clk 01:30:31]} {[%emt 00:01:33]} b5
{[%clk 01:29:43]} {[%emt 00:00:06]} 6. Be2 {[%clk 01:30:42]} {[%emt 00:00:19]}
e6 {[%clk 01:30:01]} {[%emt 00:00:12]} 7. O-O {[%clk 01:29:38]} {[%emt
00:01:33]} Bb7 {[%emt 00:09:16]} 8. Rb1 {[%emt 00:10:53]} Nbd7 {[%emt
00:04:36]} 9. b3 {[%emt 00:03:18]} Bb4 {[%clk 01:17:02]} {[%emt 00:01:45]} 10.
Qc2 {[%clk 01:14:44]} {[%emt 00:01:05]} Bxc3 {[%clk 01:06:48]} {[%emt
00:10:44]} 11. Qxc3 {[%clk 01:14:55]} {[%emt 00:00:18]} Nxe4 {[%emt 00:03:22]}
12. Qc2 {[%emt 00:01:18]} c5 {[%emt 00:21:25]} 13. bxc4 {[%clk 00:53:26]}
{[%emt 00:03:41]} b4 {[%emt 00:04:15]} 14. dxc5 {[%emt 00:01:51]} a5 {[%clk
00:59:00]} {[%emt 00:00:34]} 15. a3 {[%emt 00:01:04]} Nc3 {[%clk 00:41:08]}
{[%emt 00:18:13]} 16. axb4 {[%clk 00:47:41]} {[%emt 00:02:11]} Nxb1 {[%clk
00:40:46]} {[%emt 00:00:52]} 17. c6 {[%clk 00:41:35]} {[%emt 00:06:36]} Bxc6
{[%clk 00:41:10]} {[%emt 00:00:07]} 18. b5 {[%clk 00:42:02]} {[%emt 00:00:03]}
Bb7 {[%clk 00:37:11]} {[%emt 00:04:29]} 19. Qxb1 {[%clk 00:41:05]} {[%emt
00:01:26]} Qe7 {[%clk 00:37:36]} {[%emt 00:00:05]} 20. Qd3 {[%clk 00:33:13]}
{[%emt 00:08:22]} Nc5 {[%clk 00:30:22]} {[%emt 00:07:45]} 21. Qe3 {[%clk
00:33:13]} {[%emt 00:00:29]} O-O {[%clk 00:27:48]} {[%emt 00:03:05]} 22. Ba3
{[%clk 00:33:08]} {[%emt 00:00:35]} Rfc8 {[%clk 00:27:07]} {[%emt 00:01:11]} 23.
Ne5 {[%clk 00:32:33]} {[%emt 00:01:04]} Qc7 {[%clk 00:27:25]} {[%emt 00:00:12]}
24. Bh5 {[%clk 00:21:33]} {[%emt 00:11:30]} g6 {[%clk 00:26:33]} {[%emt
00:01:23]} 25. Be2 {[%clk 00:20:01]} {[%emt 00:02:01]} Ne4 {[%clk 00:26:16]}
{[%emt 00:00:46]} 26. Ng4 {[%clk 00:16:12]} {[%emt 00:04:19]} h5 {[%clk
00:25:10]} {[%emt 00:01:37]} 27. b6 {[%clk 00:12:53]} {[%emt 00:03:49]} Qd8
{[%clk 00:20:37]} {[%emt 00:05:03]} 28. Rd1 {[%clk 00:12:47]} {[%emt 00:00:36]}
Qe8 {[%emt 00:04:26]} 29. Nh6+ {[%clk 00:08:02]} {[%emt 00:03:24]} Kh7 {[%clk
00:18:44]} {[%emt 00:00:19]} 30. f3 {[%clk 00:08:27]} {[%emt 00:00:05]} Nf6
{[%clk 00:19:02]} {[%emt 00:00:12]} 31. Qf4 {[%clk 00:08:10]} {[%emt 00:00:46]}
e5 {[%clk 00:18:36]} {[%emt 00:00:56]} 32. Qxf6 {[%clk 00:05:58]} {[%emt
00:02:42]} Kxh6 {[%emt 00:01:03]} 33. c5 {[%emt 00:01:50]} Rc6 {[%clk
00:18:02]} {[%emt 00:00:16]} 34. Qh4 {[%clk 00:05:07]} {[%emt 00:00:15]} g5
{[%emt 00:03:42]} 35. Qe1 {[%emt 00:01:46]} Qe7 {[%clk 00:12:17]} {[%emt
00:03:28]} 36. Bb5 {[%clk 00:03:13]} {[%emt 00:00:43]} Rd8 {[%clk 00:11:05]}
{[%emt 00:01:42]} 37. Bxc6 {[%clk 00:03:28]} {[%emt 00:00:16]} Rxd1 {[%clk
00:09:06]} {[%emt 00:02:29]} 38. Qxd1 {[%clk 00:03:54]} {[%emt 00:00:04]} Bxc6
{[%clk 00:09:33]} {[%emt 00:00:03]} 39. Qd6+ {[%clk 00:04:06]} {[%emt
00:00:17]} Qe6 {[%clk 00:10:01]} {[%emt 00:00:03]} 40. Bb2 {[%clk 00:33:47]}
{[%emt 00:00:49]} Kg6 {[%clk 00:40:03]} {[%emt 00:00:28]} 41. Qxe6+ {[%clk
00:10:36]} {[%emt 00:23:41]} 1/2-1/2

[Event "elllobregat Open Chess TnmT- 2nd Edition 2021"]
[Site "Castelldefels, Spain"]
[Date "2021.12.06"]
[Round "7.6"]
[White "Van Foreest, Lucas"]
[Black "Yuffa, Daniil"]
[Result "1/2-1/2"]
[TimeControl "90min/40moves + 30min/end + 30sec increment per move starting from move 1"]
[WhiteTitle "GM"]
[BlackTitle "GM"]
[WhiteFideId "1039792"]
[BlackFideId "24131423"]
[WhiteElo "2532"]
[BlackElo "2567"]

1. d4 {[%clk 01:29:16]} {[%emt 00:01:44]} d5 {[%clk 01:29:36]} {[%emt
00:01:24]} 2. c4 {[%clk 01:28:19]} {[%emt 00:01:27]} c6 {[%clk 01:30:01]}
{[%emt 00:00:05]} 3. Nf3 {[%clk 01:28:46]} {[%emt 00:00:03]} Nf6 {[%clk
01:30:27]} {[%emt 00:00:04]} 4. cxd5 {[%clk 01:29:13]} {[%emt 00:00:03]} cxd5
{[%clk 01:30:53]} {[%emt 00:00:04]} 5. Nc3 {[%clk 01:29:40]} {[%emt 00:00:03]}
Nc6 {[%clk 01:31:06]} {[%emt 00:00:17]} 6. Bf4 {[%clk 01:30:06]} {[%emt
00:00:05]} Nh5 {[%clk 01:31:04]} {[%emt 00:00:32]} 7. Bd2 {[%emt 00:00:17]} Nf6
{[%clk 01:31:24]} {[%emt 00:00:02]} 8. e3 {[%clk 01:30:50]} {[%emt 00:00:06]}
g6 {[%emt 00:03:41]} 9. Ne5 {[%emt 00:17:00]} Bd7 {[%emt 00:09:32]} 10. f4
{[%clk 01:20:25]} {[%emt 00:00:49]} Bg7 {[%clk 01:09:59]} {[%emt 00:03:19]} 11.
Be2 {[%emt 00:00:54]} O-O {[%emt 00:04:11]} 12. O-O {[%emt 00:02:35]} e6 {[%emt
00:13:12]} 13. Rc1 {[%emt 00:09:55]} a6 {[%emt 00:10:03]} 14. Bd3 {[%emt
00:05:18]} Rc8 {[%clk 00:38:01]} {[%emt 00:15:13]} 15. Na4 {[%clk 00:47:13]}
{[%emt 00:08:18]} Nxe5 {[%clk 00:36:51]} {[%emt 00:01:41]} 16. Rxc8 {[%clk
00:47:14]} {[%emt 00:00:29]} Bxc8 {[%emt 00:01:49]} 17. fxe5 {[%clk 00:46:33]}
{[%emt 00:00:09]} Nd7 {[%clk 00:36:43]} {[%emt 00:00:20]} 18. Bb4 {[%clk
00:46:11]} {[%emt 00:00:51]} Re8 {[%emt 00:05:00]} 19. Nc5 {[%clk 00:37:33]}
{[%emt 00:05:11]} f5 {[%clk 00:32:18]} {[%emt 00:04:24]} 20. exf6 {[%clk
00:36:25]} {[%emt 00:01:38]} Nxf6 {[%clk 00:30:16]} {[%emt 00:02:31]} 21. Bc3
{[%clk 00:34:32]} {[%emt 00:02:22]} Rf8 {[%clk 00:28:10]} {[%emt 00:02:37]} 22.
Qe1 {[%emt 00:07:22]} a5 {[%clk 00:21:07]} {[%emt 00:03:52]} 23. Nb3 {[%clk
00:29:56]} {[%emt 00:01:55]} b6 {[%clk 00:20:31]} {[%emt 00:01:07]} 24. Nd2
{[%clk 00:30:19]} {[%emt 00:00:06]} Bd7 {[%clk 00:16:48]} {[%emt 00:04:13]} 25.
Qg3 {[%emt 00:03:22]} 1/2-1/2

[Event "elllobregat Open Chess TnmT- 2nd Edition 2021"]
[Site "Castelldefels, Spain"]
[Date "2021.12.06"]
[Round "7.7"]
[White "Fier, Alexandr"]
[Black "Muradli, Mahammad"]
[Result "0-1"]
[TimeControl "90min/40moves + 30min/end + 30sec increment per move starting from move 1"]
[WhiteTitle "GM"]
[BlackTitle "IM"]
[WhiteFideId "2107139"]
[BlackFideId "13409301"]
[WhiteElo "2563"]
[BlackElo "2501"]

1. e4 {[%emt 00:09:20]} c5 {[%clk 01:21:22]} {[%emt 00:00:20]} 2. Nf3 {[%emt
00:00:07]} d6 {[%clk 01:21:49]} {[%emt 00:00:02]} 3. d4 {[%clk 01:31:48]}
{[%emt 00:00:04]} cxd4 {[%clk 01:22:13]} {[%emt 00:00:06]} 4. Nxd4 {[%clk
01:32:15]} {[%emt 00:00:03]} Nf6 {[%clk 01:22:35]} {[%emt 00:00:08]} 5. Nc3
{[%clk 01:32:42]} {[%emt 00:00:03]} a6 {[%clk 01:22:57]} {[%emt 00:00:08]} 6.
Bg5 {[%clk 01:33:08]} {[%emt 00:00:04]} e6 {[%clk 01:23:20]} {[%emt 00:00:06]}
7. f4 {[%clk 01:33:32]} {[%emt 00:00:06]} h6 {[%clk 01:23:46]} {[%emt
00:00:04]} 8. Bh4 {[%clk 01:33:58]} {[%emt 00:00:04]} Qb6 {[%emt 00:01:10]} 9.
a3 {[%clk 01:33:21]} {[%emt 00:00:02]} Nbd7 {[%clk 01:24:35]} {[%emt 00:00:06]}
10. Bf2 {[%clk 01:33:45]} {[%emt 00:00:06]} Qc7 {[%clk 01:25:00]} {[%emt
00:00:06]} 11. Qf3 {[%clk 01:34:11]} {[%emt 00:00:04]} b5 {[%emt 00:00:18]} 12.
O-O-O {[%clk 01:34:01]} {[%emt 00:00:26]} Rb8 {[%emt 00:00:54]} 13. g4 {[%clk
01:33:51]} {[%emt 00:00:06]} b4 {[%clk 01:25:59]} {[%emt 00:00:05]} 14. axb4
{[%clk 01:34:16]} {[%emt 00:00:05]} Rxb4 {[%emt 00:01:14]} 15. h4 {[%clk
01:33:29]} {[%emt 00:00:07]} e5 {[%emt 00:14:28]} 16. Rg1 {[%emt 00:23:28]}
exd4 {[%clk 01:05:06]} {[%emt 00:00:05]} 17. Rxd4 {[%emt 00:07:28]} Rxd4 {[%clk
00:58:09]} {[%emt 00:00:09]} 18. Bxd4 {[%clk 01:19:03]} {[%emt 00:00:04]} Nb6
{[%clk 00:58:33]} {[%emt 00:00:07]} 19. g5 {[%emt 00:10:36]} hxg5 {[%clk
00:52:12]} {[%emt 00:00:47]} 20. hxg5 {[%emt 00:00:12]} Nfd7 {[%clk 00:52:31]}
{[%emt 00:00:05]} 21. g6 {[%emt 00:05:00]} f6 {[%emt 00:05:54]} 22. Bh3 {[%emt
00:07:59]} Bb7 {[%emt 00:14:45]} 23. Re1 {[%emt 00:06:42]} Kd8 {[%emt
00:01:51]} 24. Bf5 {[%emt 00:04:48]} Qc4 {[%emt 00:05:48]} 25. Rd1 {[%clk
00:47:55]} {[%emt 00:00:01]} Kc7 {[%clk 00:31:43]} {[%emt 00:00:29]} 26. Bg1
{[%emt 00:01:15]} Kb8 {[%emt 00:10:40]} 27. b3 {[%emt 00:01:31]} Qc7 {[%emt
00:05:24]} 28. Nd5 {[%emt 00:04:22]} Bxd5 {[%clk 00:24:20]} {[%emt 00:00:33]}
29. exd5 {[%clk 00:33:37]} {[%emt 00:01:27]} Nc5 {[%emt 00:17:30]} 30. Kb1
{[%emt 00:00:57]} Be7 {[%emt 00:04:30]} 31. Qc3 {[%emt 00:04:01]} Rh5 {[%emt
00:00:32]} 32. Bxc5 {[%emt 00:02:15]} dxc5 {[%emt 00:01:54]} 33. Qd3 {[%emt
00:01:56]} Bd6 {[%emt 00:02:42]} 34. Re1 {[%emt 00:03:13]} Ka7 {[%emt
00:00:30]} 35. c4 {[%emt 00:00:42]} Bxf4 {[%emt 00:00:22]} 36. Re8 {[%emt
00:00:22]} Rh1+ {[%clk 00:13:32]} {[%emt 00:00:09]} 37. Kc2 {[%clk 00:10:42]}
{[%emt 00:00:06]} Rc1+ {[%emt 00:00:16]} 38. Kb2 {[%emt 00:00:12]} Nxc4+ {[%emt
00:00:11]} 39. bxc4 {[%emt 00:01:21]} Qb6+ {[%emt 00:00:23]} 40. Ka2 {[%clk
00:41:42]} Qa5+ {[%clk 00:43:32]} {[%emt 00:00:06]} 41. Kb2 {[%clk 00:42:10]}
{[%emt 00:00:03]} Qb4+ {[%clk 00:43:53]} {[%emt 00:00:10]} 42. Ka2 {[%emt
00:00:05]} Qa4+ {[%emt 00:00:10]} 43. Kb2 {[%clk 00:43:02]} {[%emt 00:00:02]}
Qxe8 {[%clk 00:44:37]} {[%emt 00:00:06]} 0-1

[Event "elllobregat Open Chess TnmT- 2nd Edition 2021"]
[Site "Castelldefels, Spain"]
[Date "2021.12.06"]
[Round "7.8"]
[White "Pantzar, Milton"]
[Black "Fedorchuk, Sergey A."]
[Result "1/2-1/2"]
[TimeControl "90min/40moves + 30min/end + 30sec increment per move starting from move 1"]
[WhiteTitle "IM"]
[BlackTitle "GM"]
[WhiteFideId "1721003"]
[BlackFideId "14102536"]
[WhiteElo "2441"]
[BlackElo "2594"]

1. d4 {[%clk 01:30:58]} {[%emt 00:00:01]} Nf6 {[%clk 01:24:12]} {[%emt
00:06:42]} 2. c4 {[%clk 01:31:01]} {[%emt 00:00:33]} e6 {[%clk 01:24:26]}
{[%emt 00:00:16]} 3. Nf3 {[%clk 01:31:16]} {[%emt 00:00:16]} d5 {[%clk
01:22:27]} {[%emt 00:02:28]} 4. g3 {[%clk 01:31:32]} {[%emt 00:00:14]} Bb4+
{[%clk 01:21:02]} {[%emt 00:01:56]} 5. Bd2 {[%clk 01:31:08]} {[%emt 00:00:54]}
Be7 {[%clk 01:19:30]} {[%emt 00:02:01]} 6. Bg2 {[%clk 01:31:16]} {[%emt
00:00:23]} O-O {[%clk 01:16:08]} {[%emt 00:03:51]} 7. Qc2 {[%clk 01:31:04]}
{[%emt 00:00:43]} Nbd7 {[%clk 01:11:24]} {[%emt 00:05:14]} 8. O-O {[%clk
01:30:29]} {[%emt 00:01:05]} c6 {[%clk 01:11:33]} {[%emt 00:00:22]} 9. b4
{[%clk 01:29:47]} {[%emt 00:01:12]} Ne4 {[%clk 01:07:34]} {[%emt 00:04:28]} 10.
Be1 {[%clk 01:29:26]} {[%emt 00:00:50]} f5 {[%clk 01:05:18]} {[%emt 00:02:47]}
11. Nc3 {[%clk 01:25:51]} {[%emt 00:04:05]} Bf6 {[%clk 00:57:46]} {[%emt
00:08:02]} 12. Rc1 {[%clk 01:16:13]} {[%emt 00:10:08]} Nb6 {[%clk 00:47:32]}
{[%emt 00:10:43]} 13. cxd5 {[%clk 01:08:54]} {[%emt 00:07:49]} cxd5 {[%clk
00:47:15]} {[%emt 00:00:47]} 14. Ne5 {[%clk 00:53:45]} {[%emt 00:15:40]} Bd7
{[%clk 00:46:31]} {[%emt 00:01:14]} 15. Nxe4 {[%clk 00:52:34]} {[%emt
00:01:41]} dxe4 {[%clk 00:46:50]} {[%emt 00:00:10]} 16. Qb3 {[%clk 00:51:03]}
{[%emt 00:02:02]} Kh8 {[%clk 00:34:15]} {[%emt 00:13:05]} 17. b5 {[%clk
00:45:43]} {[%emt 00:05:51]} Nd5 {[%clk 00:34:36]} {[%emt 00:00:08]} 18. Bb4
{[%clk 00:40:59]} {[%emt 00:05:15]} Nxb4 {[%clk 00:34:47]} {[%emt 00:00:19]} 19.
Qxb4 {[%clk 00:41:21]} {[%emt 00:00:08]} a6 {[%clk 00:27:55]} {[%emt 00:07:22]}
20. bxa6 {[%clk 00:29:32]} {[%emt 00:12:19]} bxa6 {[%clk 00:28:18]} {[%emt
00:00:07]} 21. Nxd7 {[%clk 00:29:35]} {[%emt 00:00:27]} Qxd7 {[%clk 00:28:39]}
{[%emt 00:00:08]} 22. e3 {[%clk 00:30:00]} {[%emt 00:00:05]} a5 {[%clk
00:24:07]} {[%emt 00:05:02]} 23. Qc4 {[%clk 00:27:09]} {[%emt 00:03:21]} a4
{[%clk 00:23:48]} {[%emt 00:00:49]} 24. Qc6 {[%clk 00:22:59]} {[%emt 00:04:39]}
Qe7 {[%clk 00:23:43]} {[%emt 00:00:35]} 25. Rc4 {[%clk 00:21:29]} {[%emt
00:02:01]} a3 {[%clk 00:23:08]} {[%emt 00:01:05]} 26. Rb1 {[%clk 00:18:29]}
{[%emt 00:03:30]} Rab8 {[%clk 00:22:52]} {[%emt 00:00:46]} 27. Rb6 {[%clk
00:16:03]} {[%emt 00:02:56]} h5 {[%clk 00:15:26]} {[%emt 00:07:55]} 28. Bf1
{[%clk 00:15:16]} {[%emt 00:01:17]} Rfe8 {[%clk 00:06:58]} {[%emt 00:08:58]} 29.
Rc5 {[%clk 00:13:15]} {[%emt 00:02:32]} h4 {[%clk 00:03:41]} {[%emt 00:03:47]}
30. Bc4 {[%clk 00:10:40]} {[%emt 00:03:05]} Rxb6 {[%clk 00:03:33]} {[%emt
00:00:38]} 31. Qxb6 {[%clk 00:11:03]} {[%emt 00:00:07]} Kh7 {[%clk 00:03:40]}
{[%emt 00:00:23]} 32. Kg2 {[%clk 00:06:54]} {[%emt 00:04:39]} Kh6 {[%clk
00:01:47]} {[%emt 00:02:23]} 33. Rc6 {[%clk 00:05:43]} {[%emt 00:01:40]} Qf7
{[%clk 00:01:49]} {[%emt 00:00:29]} 34. Rxe6 {[%clk 00:04:06]} {[%emt
00:02:07]} Rxe6 {[%clk 00:02:11]} {[%emt 00:00:07]} 35. Qxe6 {[%clk 00:01:52]}
{[%emt 00:02:45]} Qxe6 {[%clk 00:00:48]} {[%emt 00:01:53]} 36. Bxe6 {[%clk
00:02:19]} {[%emt 00:00:03]} g6 {[%clk 00:01:04]} {[%emt 00:00:14]} 37. g4
{[%clk 00:00:56]} {[%emt 00:01:53]} Kg5 {[%clk 00:01:19]} {[%emt 00:00:14]} 38.
h3 {[%clk 00:00:43]} {[%emt 00:00:43]} Be7 {[%clk 00:01:39]} {[%emt 00:00:10]}
39. gxf5 {[%clk 00:00:45]} {[%emt 00:00:28]} gxf5 {[%clk 00:02:05]} {[%emt
00:00:04]} 40. Kf1 {[%clk 00:30:56]} {[%emt 00:00:19]} Kf6 {[%clk 00:32:25]}
{[%emt 00:00:10]} 41. Bd5 {[%clk 00:28:36]} {[%emt 00:02:49]} Bd6 {[%clk
00:32:17]} {[%emt 00:00:39]} 42. Ke2 {[%clk 00:28:28]} {[%emt 00:00:38]} Bh2
{[%clk 00:32:36]} {[%emt 00:00:10]} 43. f3 {[%clk 00:28:10]} {[%emt 00:00:48]}
exf3+ {[%clk 00:33:00]} {[%emt 00:00:07]} 44. Bxf3 {[%clk 00:28:35]} {[%emt
00:00:05]} Bg1 {[%clk 00:33:22]} {[%emt 00:00:08]} 45. Kd3 {[%clk 00:28:53]}
{[%emt 00:00:12]} Bf2 {[%clk 00:33:37]} {[%emt 00:00:15]} 46. Bb7 {[%clk
00:29:09]} {[%emt 00:00:15]} Bg1 {[%clk 00:33:59]} {[%emt 00:00:07]} 47. Bc8
{[%clk 00:29:27]} {[%emt 00:00:12]} Bf2 {[%clk 00:34:20]} {[%emt 00:00:09]} 48.
Ke2 {[%clk 00:27:23]} {[%emt 00:02:35]} Bg1 {[%clk 00:34:45]} {[%emt 00:00:04]}
49. Kf3 {[%clk 00:27:49]} {[%emt 00:00:04]} Bh2 {[%clk 00:35:06]} {[%emt
00:00:08]} 50. Ke2 {[%clk 00:27:31]} {[%emt 00:00:48]} 1/2-1/2